[Event "Titled Tuesday Blitz July 4 Early 2023"]
[White "Aggelis, Nikolaos"]
[Black "Mikhailovsky, Vladimir"]
[WhiteFideId "4213220"]
[BlackFideId "34105414"]
[WhiteElo "2561"]
[BlackElo "2808"]
[Result "0-1"]
[Round "7"]
[TimeControl "180+2"]
[Date "2023.07.04"]
[WhiteClock "0:00:12"]
[BlackClock "0:00:13"]
[Board "66"]

1. c4 {[%clk 0:03:00]}  e6 {[%clk 0:02:53]} 2. g3 {[%clk 0:02:57]}  h5 {[%clk 0:02:51]} 3. Nf3 {[%clk 0:02:56]}  g5 {[%clk 0:02:48]} 4. Nd4 {[%clk 0:02:13]}  Bg7 {[%clk 0:02:45]} 5. Nc2 {[%clk 0:02:11]}  h4 {[%clk 0:02:39]} 6. Bg2 {[%clk 0:02:10]}  h3 {[%clk 0:02:37]} 7. Bf3 {[%clk 0:02:09]}  d5 {[%clk 0:02:36]} 8. cxd5 {[%clk 0:02:09]}  exd5 {[%clk 0:02:36]} 9. e3 {[%clk 0:02:07]}  Nf6 {[%clk 0:02:34]} 10. d4 {[%clk 0:02:05]}  c6 {[%clk 0:02:24]} 11. O-O {[%clk 0:02:04]}  Bf5 {[%clk 0:02:22]} 12. Nc3 {[%clk 0:02:03]}  Nbd7 {[%clk 0:02:21]} 13. Re1 {[%clk 0:01:56]}  O-O {[%clk 0:02:21]} 14. a4 {[%clk 0:01:51]}  Re8 {[%clk 0:02:16]} 15. b4 {[%clk 0:01:40]}  g4 {[%clk 0:02:13]} 16. Bh1 {[%clk 0:01:39]}  Nf8 {[%clk 0:01:44]} 17. Bd2 {[%clk 0:01:34]}  Qd7 {[%clk 0:01:43]} 18. b5 {[%clk 0:01:33]}  Ne4 {[%clk 0:01:43]} 19. bxc6 {[%clk 0:01:29]}  bxc6 {[%clk 0:01:42]} 20. Nxe4 {[%clk 0:01:16]}  Bxe4 {[%clk 0:01:43]} 21. Bxe4 {[%clk 0:01:16]}  Rxe4 {[%clk 0:01:43]} 22. f3 {[%clk 0:01:15]}  gxf3 {[%clk 0:01:31]} 23. Qxf3 {[%clk 0:01:16]}  Nh7 {[%clk 0:01:31]} 24. Rf1 {[%clk 0:01:15]}  c5 {[%clk 0:01:19]} 25. Bc3 {[%clk 0:01:11]}  Rae8 {[%clk 0:01:13]} 26. Rae1 {[%clk 0:00:49]}  Ng5 {[%clk 0:00:56]} 27. Qf5 {[%clk 0:00:49]}  Qxa4 {[%clk 0:00:56]} 28. Re2 {[%clk 0:00:29]}  Qc4 {[%clk 0:00:54]} 29. Ref2 {[%clk 0:00:23]}  Qxc3 {[%clk 0:00:17]} 30. Qxg5 {[%clk 0:00:23]}  cxd4 {[%clk 0:00:13]} 31. Rxf7 {[%clk 0:00:20]}  dxe3 {[%clk 0:00:10]} 32. Qxd5 {[%clk 0:00:17]}  Qe5 {[%clk 0:00:06]} 33. Rf8+ {[%clk 0:00:16]}  Kh7 {[%clk 0:00:06]} 34. Qxe5 {[%clk 0:00:10]}  R8xe5 {[%clk 0:00:07]} 35. R8f7 {[%clk 0:00:10]}  Kg6 {[%clk 0:00:07]} 36. R7f4 {[%clk 0:00:09]}  e2 {[%clk 0:00:05]} 37. Re1 {[%clk 0:00:08]}  Rxf4 {[%clk 0:00:02]} 38. gxf4 {[%clk 0:00:09]}  Re4 {[%clk 0:00:02]} 39. Kf2 {[%clk 0:00:10]}  Rxf4+ {[%clk 0:00:03]} 40. Kxe2 {[%clk 0:00:10]}  Rg4 {[%clk 0:00:03]} 41. Kf3 {[%clk 0:00:10]}  Rg2 {[%clk 0:00:04]} 42. Re2 {[%clk 0:00:11]}  Rxe2 {[%clk 0:00:03]} 43. Kxe2 {[%clk 0:00:12]}  Be5 {[%clk 0:00:04]} 44. Kf3 {[%clk 0:00:12]}  Bxh2 {[%clk 0:00:04]} 45. Kg4 {[%clk 0:00:13]}  Be5 {[%clk 0:00:04]} 46. Kxh3 {[%clk 0:00:13]}  Kf5 {[%clk 0:00:05]} 47. Kg2 {[%clk 0:00:12]}  Ke4 {[%clk 0:00:05]} 48. Nb4 {[%clk 0:00:11]}  Bd6 {[%clk 0:00:05]} 49. Na6 {[%clk 0:00:10]}  Kd5 {[%clk 0:00:04]} 50. Kf3 {[%clk 0:00:09]}  Kc6 {[%clk 0:00:05]} 51. Ke4 {[%clk 0:00:07]}  Kb6 {[%clk 0:00:05]} 52. Kd5 {[%clk 0:00:06]}  Kxa6 {[%clk 0:00:06]} 53. Kxd6 {[%clk 0:00:07]}  Kb5 {[%clk 0:00:07]} 54. Kd5 {[%clk 0:00:08]}  Kb4 {[%clk 0:00:07]} 55. Kd4 {[%clk 0:00:09]}  a5 {[%clk 0:00:08]} 56. Kd3 {[%clk 0:00:10]}  Kb3 {[%clk 0:00:08]} 57. Kd2 {[%clk 0:00:10]}  Kb2 {[%clk 0:00:09]} 58. Kd1 {[%clk 0:00:11]}  a4 {[%clk 0:00:10]} 59. Kd2 {[%clk 0:00:11]}  a3 {[%clk 0:00:11]} 60. Kd1 {[%clk 0:00:12]}  a2 {[%clk 0:00:12]} 61. Kd2 {[%clk 0:00:12]}  a1=Q {[%clk 0:00:13]} 0-1


[Site "https://www.chess.com"]

[Event "Titled Tuesday Blitz July 4 Early 2023"]
[White "lagarto93"]
[Black "Dvirnyy, Danyyil"]
[BlackFideId "817570"]
[WhiteElo "2545"]
[BlackElo "2753"]
[Result "0-1"]
[Round "7"]
[TimeControl "180+2"]
[Date "2023.07.04"]
[WhiteClock "0:00:19"]
[BlackClock "0:00:30"]
[Board "68"]

1. e4 {[%clk 0:03:00]}  d6 {[%clk 0:03:00]} 2. d4 {[%clk 0:03:00]}  Nf6 {[%clk 0:03:00]} 3. Nc3 {[%clk 0:03:00]}  e5 {[%clk 0:03:01]} 4. Nf3 {[%clk 0:03:00]}  Nbd7 {[%clk 0:03:01]} 5. Bc4 {[%clk 0:03:00]}  Be7 {[%clk 0:03:01]} 6. O-O {[%clk 0:03:00]}  O-O {[%clk 0:03:02]} 7. a4 {[%clk 0:03:01]}  c6 {[%clk 0:03:00]} 8. Ba2 {[%clk 0:03:01]}  h6 {[%clk 0:02:55]} 9. Re1 {[%clk 0:03:01]}  Re8 {[%clk 0:02:54]} 10. h3 {[%clk 0:03:01]}  Bf8 {[%clk 0:02:48]} 11. dxe5 {[%clk 0:02:57]}  dxe5 {[%clk 0:02:46]} 12. Qe2 {[%clk 0:02:57]}  Bc5 {[%clk 0:02:37]} 13. Be3 {[%clk 0:02:53]}  Qa5 {[%clk 0:02:31]} 14. Qc4 {[%clk 0:02:44]}  Re7 {[%clk 0:02:27]} 15. Rad1 {[%clk 0:02:34]}  Bxe3 {[%clk 0:02:21]} 16. Rxe3 {[%clk 0:02:34]}  Nf8 {[%clk 0:02:20]} 17. b4 {[%clk 0:02:27]}  Qc7 {[%clk 0:02:20]} 18. Qc5 {[%clk 0:02:12]}  b6 {[%clk 0:02:16]} 19. Qd6 {[%clk 0:02:12]}  Qxd6 {[%clk 0:02:02]} 20. Rxd6 {[%clk 0:02:13]}  Bd7 {[%clk 0:01:59]} 21. Red3 {[%clk 0:02:02]}  Rc8 {[%clk 0:01:59]} 22. Bc4 {[%clk 0:01:50]}  Ne8 {[%clk 0:01:56]} 23. Ba6 {[%clk 0:01:41]}  Nxd6 {[%clk 0:01:56]} 24. Rxd6 {[%clk 0:01:42]}  Rc7 {[%clk 0:01:53]} 25. Ne2 {[%clk 0:01:41]}  Bc8 {[%clk 0:01:44]} 26. Bxc8 {[%clk 0:01:37]}  Rxc8 {[%clk 0:01:44]} 27. Rd3 {[%clk 0:01:37]}  f6 {[%clk 0:01:42]} 28. Ng3 {[%clk 0:01:37]}  Rd7 {[%clk 0:01:42]} 29. Rc3 {[%clk 0:01:35]}  Ne6 {[%clk 0:01:41]} 30. Kf1 {[%clk 0:01:27]}  Kf7 {[%clk 0:01:36]} 31. Nf5 {[%clk 0:01:19]}  h5 {[%clk 0:01:34]} 32. Ne3 {[%clk 0:01:18]}  Nd4 {[%clk 0:01:27]} 33. Nh4 {[%clk 0:01:18]}  g6 {[%clk 0:01:25]} 34. g3 {[%clk 0:01:16]}  Rcd8 {[%clk 0:01:23]} 35. Kg2 {[%clk 0:01:16]}  Rc8 {[%clk 0:01:12]} 36. Kf1 {[%clk 0:01:11]}  Rdc7 {[%clk 0:01:04]} 37. Kg2 {[%clk 0:01:10]}  Ra8 {[%clk 0:01:03]} 38. Nd5 {[%clk 0:01:04]}  Rcc8 {[%clk 0:01:00]} 39. Ne3 {[%clk 0:01:04]}  a5 {[%clk 0:01:00]} 40. bxa5 {[%clk 0:01:01]}  b5 {[%clk 0:00:55]} 41. axb5 {[%clk 0:00:57]}  cxb5 {[%clk 0:00:55]} 42. Rd3 {[%clk 0:00:56]}  Rxa5 {[%clk 0:00:54]} 43. c3 {[%clk 0:00:55]}  Ra3 {[%clk 0:00:54]} 44. Nd5 {[%clk 0:00:55]}  Ne2 {[%clk 0:00:48]} 45. Nb6 {[%clk 0:00:48]}  Rc7 {[%clk 0:00:47]} 46. Rd6 {[%clk 0:00:25]}  Nxc3 {[%clk 0:00:46]} 47. g4 {[%clk 0:00:20]}  hxg4 {[%clk 0:00:45]} 48. hxg4 {[%clk 0:00:21]}  Nxe4 {[%clk 0:00:45]} 49. Rd8 {[%clk 0:00:21]}  Ra2 {[%clk 0:00:35]} 50. Kf3 {[%clk 0:00:21]}  Rc3+ {[%clk 0:00:31]} 51. Kxe4 {[%clk 0:00:20]}  Re2+ {[%clk 0:00:31]} 52. Kd5 {[%clk 0:00:21]}  Rd2+ {[%clk 0:00:30]} 53. Ke4 {[%clk 0:00:19]}  Rxd8 {[%clk 0:00:30]} 0-1


[Site "https://www.chess.com"]

[Event "Titled Tuesday Blitz July 4 Early 2023"]
[White "IrI_Cheetah"]
[Black "Weetik, Vjacheslav"]
[BlackFideId "4153472"]
[WhiteElo "2544"]
[BlackElo "2739"]
[Result "0-1"]
[Round "7"]
[TimeControl "180+2"]
[Date "2023.07.04"]
[WhiteClock "0:00:09"]
[BlackClock "0:00:38"]
[Board "69"]

1. e4 {[%clk 0:02:59]}  c6 {[%clk 0:03:00]} 2. d4 {[%clk 0:02:59]}  d5 {[%clk 0:03:01]} 3. e5 {[%clk 0:03:00]}  Bf5 {[%clk 0:03:00]} 4. Nf3 {[%clk 0:03:00]}  e6 {[%clk 0:03:01]} 5. Be2 {[%clk 0:03:01]}  Nd7 {[%clk 0:03:01]} 6. O-O {[%clk 0:03:00]}  Bg6 {[%clk 0:03:02]} 7. a4 {[%clk 0:02:49]}  Nh6 {[%clk 0:03:02]} 8. a5 {[%clk 0:02:40]}  Nf5 {[%clk 0:03:02]} 9. c3 {[%clk 0:02:35]}  Be7 {[%clk 0:03:02]} 10. b4 {[%clk 0:02:33]}  O-O {[%clk 0:03:01]} 11. Nbd2 {[%clk 0:02:33]}  f6 {[%clk 0:03:01]} 12. exf6 {[%clk 0:02:23]}  Bxf6 {[%clk 0:03:00]} 13. Re1 {[%clk 0:02:22]}  e5 {[%clk 0:02:46]} 14. dxe5 {[%clk 0:02:20]}  Nxe5 {[%clk 0:02:46]} 15. Qb3 {[%clk 0:02:16]}  Qc7 {[%clk 0:01:54]} 16. Ne4 {[%clk 0:02:12]}  Be7 {[%clk 0:01:49]} 17. Bg5 {[%clk 0:01:35]}  Nxf3+ {[%clk 0:01:26]} 18. Bxf3 {[%clk 0:01:33]}  Kh8 {[%clk 0:01:01]} 19. Bxe7 {[%clk 0:01:33]}  Qxe7 {[%clk 0:01:00]} 20. Nc5 {[%clk 0:01:29]}  Qf7 {[%clk 0:01:00]} 21. Rf1 {[%clk 0:00:59]}  Rae8 {[%clk 0:00:56]} 22. g3 {[%clk 0:00:49]}  Nh4 {[%clk 0:00:45]} 23. Bh1 {[%clk 0:00:41]}  Nf3+ {[%clk 0:00:44]} 24. Bxf3 {[%clk 0:00:42]}  Qxf3 {[%clk 0:00:45]} 25. Qd1 {[%clk 0:00:25]}  Re2 {[%clk 0:00:40]} 26. Nd7 {[%clk 0:00:09]}  Be4 {[%clk 0:00:38]} 0-1


[Site "https://www.chess.com"]

[Event "Titled Tuesday Blitz July 4 Early 2023"]
[White "Rottenwohrer Suarez, Juan"]
[Black "Cherniaiev, Tykhon"]
[WhiteFideId "32068182"]
[BlackFideId "14182360"]
[WhiteElo "2520"]
[BlackElo "2699"]
[Result "0-1"]
[Round "7"]
[TimeControl "180+2"]
[Date "2023.07.04"]
[WhiteClock "0:00:00"]
[BlackClock "0:00:34"]
[Board "71"]

1. c4 {[%clk 0:03:00]}  e5 {[%clk 0:02:58]} 2. g3 {[%clk 0:02:55]}  Nf6 {[%clk 0:02:55]} 3. Bg2 {[%clk 0:02:55]}  d5 {[%clk 0:02:54]} 4. cxd5 {[%clk 0:02:56]}  Nxd5 {[%clk 0:02:55]} 5. Nc3 {[%clk 0:02:56]}  Nb6 {[%clk 0:02:54]} 6. d3 {[%clk 0:02:51]}  Be7 {[%clk 0:02:52]} 7. Nf3 {[%clk 0:02:38]}  Nc6 {[%clk 0:02:52]} 8. O-O {[%clk 0:02:38]}  O-O {[%clk 0:02:52]} 9. Be3 {[%clk 0:02:37]}  Be6 {[%clk 0:02:51]} 10. a3 {[%clk 0:02:37]}  a5 {[%clk 0:02:48]} 11. Na4 {[%clk 0:02:35]}  Nd5 {[%clk 0:02:39]} 12. Bc5 {[%clk 0:02:31]}  b5 {[%clk 0:02:38]} 13. Bxe7 {[%clk 0:02:29]}  Qxe7 {[%clk 0:02:39]} 14. Nc3 {[%clk 0:02:29]}  Nxc3 {[%clk 0:02:39]} 15. bxc3 {[%clk 0:02:29]}  Rfd8 {[%clk 0:02:38]} 16. Qc2 {[%clk 0:02:26]}  f6 {[%clk 0:02:36]} 17. Nd2 {[%clk 0:02:24]}  Ra6 {[%clk 0:02:31]} 18. Rfb1 {[%clk 0:02:15]}  Rb8 {[%clk 0:02:27]} 19. h4 {[%clk 0:02:01]}  Rab6 {[%clk 0:01:48]} 20. Ne4 {[%clk 0:01:50]}  b4 {[%clk 0:01:46]} 21. axb4 {[%clk 0:01:47]}  axb4 {[%clk 0:01:45]} 22. cxb4 {[%clk 0:01:43]}  Nd4 {[%clk 0:01:45]} 23. Qd2 {[%clk 0:01:35]}  Nb3 {[%clk 0:01:40]} 24. Rxb3 {[%clk 0:01:01]}  Bxb3 {[%clk 0:01:40]} 25. Nc5 {[%clk 0:01:01]}  Bf7 {[%clk 0:01:39]} 26. Ra4 {[%clk 0:00:56]}  h6 {[%clk 0:01:27]} 27. Qc3 {[%clk 0:00:54]}  Qd6 {[%clk 0:01:19]} 28. Kh2 {[%clk 0:00:38]}  Qd4 {[%clk 0:01:06]} 29. Qxd4 {[%clk 0:00:30]}  exd4 {[%clk 0:01:07]} 30. Na6 {[%clk 0:00:23]}  Re8 {[%clk 0:01:00]} 31. Bf3 {[%clk 0:00:20]}  c6 {[%clk 0:00:50]} 32. Nc5 {[%clk 0:00:17]}  Bd5 {[%clk 0:00:43]} 33. Kg2 {[%clk 0:00:11]}  Rxe2 {[%clk 0:00:42]} 34. Bxd5+ {[%clk 0:00:02]}  cxd5 {[%clk 0:00:43]} 35. Ra8+ {[%clk 0:00:02]}  Kf7 {[%clk 0:00:39]} 36. Rd8 {[%clk 0:00:03]}  Rxb4 {[%clk 0:00:39]} 37. Rd7+ {[%clk 0:00:03]}  Re7 {[%clk 0:00:34]} 38. Rxd5 {[%clk 0:00:00]}  Rb5 {[%clk 0:00:34]} 0-1


[Site "https://www.chess.com"]

[Event "Titled Tuesday Blitz July 4 Early 2023"]
[White "Williams, Simon K"]
[Black "Kovalevsky, Stanislav"]
[WhiteFideId "404454"]
[BlackFideId "13508598"]
[WhiteElo "2687"]
[BlackElo "2492"]
[Result "1-0"]
[Round "7"]
[TimeControl "180+2"]
[Date "2023.07.04"]
[WhiteClock "0:02:08"]
[BlackClock "0:01:37"]
[Board "73"]

1. d4 {[%clk 0:03:00]}  d5 {[%clk 0:02:58]} 2. c4 {[%clk 0:02:59]}  c6 {[%clk 0:02:58]} 3. cxd5 {[%clk 0:02:59]}  cxd5 {[%clk 0:02:58]} 4. Nc3 {[%clk 0:02:59]}  Nc6 {[%clk 0:02:59]} 5. f3 {[%clk 0:03:00]}  Nf6 {[%clk 0:02:52]} 6. e4 {[%clk 0:02:59]}  dxe4 {[%clk 0:02:52]} 7. d5 {[%clk 0:02:58]}  Ne5 {[%clk 0:02:49]} 8. fxe4 {[%clk 0:02:58]}  e6 {[%clk 0:02:43]} 9. Nf3 {[%clk 0:02:57]}  Nxf3+ {[%clk 0:02:40]} 10. Qxf3 {[%clk 0:02:56]}  exd5 {[%clk 0:02:40]} 11. e5 {[%clk 0:02:56]}  Ne4 {[%clk 0:02:30]} 12. Bb5+ {[%clk 0:02:54]}  Bd7 {[%clk 0:02:30]} 13. Rf1 {[%clk 0:02:52]}  f5 {[%clk 0:02:00]} 14. Qxf5 {[%clk 0:02:48]}  Qh4+ {[%clk 0:01:46]} 15. g3 {[%clk 0:02:46]}  Bxb5 {[%clk 0:01:45]} 16. Qf7+ {[%clk 0:02:35]}  Kd8 {[%clk 0:01:45]} 17. gxh4 {[%clk 0:02:32]}  Bxf1 {[%clk 0:01:44]} 18. Qxd5+ {[%clk 0:02:26]}  Kc7 {[%clk 0:01:45]} 19. Qxe4 {[%clk 0:02:17]}  Ba6 {[%clk 0:01:44]} 20. Nd5+ {[%clk 0:02:16]}  Kd7 {[%clk 0:01:42]} 21. Qf5+ {[%clk 0:02:16]}  Kc6 {[%clk 0:01:42]} 22. Qe6+ {[%clk 0:02:16]}  Kb5 {[%clk 0:01:40]} 23. Nc7+ {[%clk 0:02:12]}  Kc5 {[%clk 0:01:37]} 24. Be3+ {[%clk 0:02:08]}  Kb4 {[%clk 0:01:37]} 1-0


[Site "https://www.chess.com"]

[Event "Titled Tuesday Blitz July 4 Early 2023"]
[White "Fiedorek, Michal"]
[Black "Amburgy, Ryan"]
[WhiteFideId "1199528"]
[BlackFideId "30924820"]
[WhiteElo "2472"]
[BlackElo "2679"]
[Result "1-0"]
[Round "7"]
[TimeControl "180+2"]
[Date "2023.07.04"]
[WhiteClock "0:01:31"]
[BlackClock "0:00:28"]
[Board "74"]

1. e4 {[%clk 0:03:00]}  e5 {[%clk 0:03:00]} 2. Nf3 {[%clk 0:02:58]}  Nc6 {[%clk 0:03:00]} 3. Bc4 {[%clk 0:02:57]}  Bc5 {[%clk 0:03:00]} 4. c3 {[%clk 0:02:52]}  Nf6 {[%clk 0:03:00]} 5. d4 {[%clk 0:02:51]}  exd4 {[%clk 0:03:01]} 6. b4 {[%clk 0:02:52]}  Be7 {[%clk 0:03:00]} 7. e5 {[%clk 0:02:49]}  Ng4 {[%clk 0:03:00]} 8. cxd4 {[%clk 0:02:48]}  Bxb4+ {[%clk 0:03:00]} 9. Bd2 {[%clk 0:02:44]}  Bxd2+ {[%clk 0:03:00]} 10. Nbxd2 {[%clk 0:02:45]}  d5 {[%clk 0:03:00]} 11. Bd3 {[%clk 0:02:40]}  O-O {[%clk 0:02:57]} 12. O-O {[%clk 0:02:40]}  Ne7 {[%clk 0:02:53]} 13. Qc2 {[%clk 0:02:38]}  Ng6 {[%clk 0:02:49]} 14. h3 {[%clk 0:02:36]}  Nh6 {[%clk 0:02:49]} 15. Rfe1 {[%clk 0:02:32]}  Re8 {[%clk 0:02:23]} 16. Nf1 {[%clk 0:02:26]}  Kh8 {[%clk 0:02:01]} 17. Ng3 {[%clk 0:02:25]}  Nf4 {[%clk 0:02:00]} 18. Bf1 {[%clk 0:02:22]}  Bd7 {[%clk 0:01:35]} 19. Qd2 {[%clk 0:02:21]}  Ng6 {[%clk 0:01:28]} 20. Bd3 {[%clk 0:02:16]}  a6 {[%clk 0:01:27]} 21. Ng5 {[%clk 0:02:09]}  Bb5 {[%clk 0:01:11]} 22. Bc2 {[%clk 0:02:01]}  Qe7 {[%clk 0:01:08]} 23. f4 {[%clk 0:02:01]}  Nf8 {[%clk 0:00:50]} 24. f5 {[%clk 0:01:59]}  f6 {[%clk 0:00:49]} 25. Nf3 {[%clk 0:01:55]}  c5 {[%clk 0:00:42]} 26. Nh5 {[%clk 0:01:52]}  Qf7 {[%clk 0:00:40]} 27. Nxf6 {[%clk 0:01:51]}  gxf6 {[%clk 0:00:40]} 28. Qxh6 {[%clk 0:01:51]}  cxd4 {[%clk 0:00:40]} 29. exf6 {[%clk 0:01:43]}  Nd7 {[%clk 0:00:40]} 30. Ng5 {[%clk 0:01:42]}  Rxe1+ {[%clk 0:00:30]} 31. Rxe1 {[%clk 0:01:42]}  Qg8 {[%clk 0:00:31]} 32. Re7 {[%clk 0:01:36]}  Nf8 {[%clk 0:00:28]} 33. Rg7 {[%clk 0:01:31]} 1-0


[Site "https://www.chess.com"]

[Event "Titled Tuesday Blitz July 4 Early 2023"]
[White "Timerkhanov, Alexander"]
[Black "Ocelak, Jakub"]
[WhiteFideId "24177938"]
[BlackFideId "23707933"]
[WhiteElo "2678"]
[BlackElo "2455"]
[Result "0-1"]
[Round "7"]
[TimeControl "180+2"]
[Date "2023.07.04"]
[WhiteClock "0:02:41"]
[BlackClock "0:02:17"]
[Board "75"]

1. d4 {[%clk 0:03:00]}  d5 {[%clk 0:02:58]} 2. Bf4 {[%clk 0:03:00]}  c5 {[%clk 0:02:58]} 3. e3 {[%clk 0:02:59]}  Nc6 {[%clk 0:02:58]} 4. c3 {[%clk 0:03:00]}  Nf6 {[%clk 0:02:58]} 5. Nd2 {[%clk 0:03:00]}  e6 {[%clk 0:02:58]} 6. Ngf3 {[%clk 0:02:58]}  cxd4 {[%clk 0:02:59]} 7. exd4 {[%clk 0:02:58]}  Nh5 {[%clk 0:02:59]} 8. Bg5 {[%clk 0:02:58]}  f6 {[%clk 0:02:59]} 9. Be3 {[%clk 0:02:54]}  Bd6 {[%clk 0:02:59]} 10. g3 {[%clk 0:02:54]}  O-O {[%clk 0:02:56]} 11. Bd3 {[%clk 0:02:50]}  Qe8 {[%clk 0:02:55]} 12. Qc2 {[%clk 0:02:49]}  f5 {[%clk 0:02:55]} 13. O-O-O {[%clk 0:02:48]}  Bd7 {[%clk 0:02:40]} 14. Kb1 {[%clk 0:02:48]}  Rc8 {[%clk 0:02:39]} 15. a3 {[%clk 0:02:47]}  Na5 {[%clk 0:02:33]} 16. g4 {[%clk 0:02:46]}  Nf4 {[%clk 0:02:30]} 17. gxf5 {[%clk 0:02:46]}  Nxd3 {[%clk 0:02:26]} 18. Qxd3 {[%clk 0:02:47]}  e5 {[%clk 0:02:18]} 19. dxe5 {[%clk 0:02:41]}  Bxf5 {[%clk 0:02:17]} 0-1


[Site "https://www.chess.com"]

[Event "Titled Tuesday Blitz July 4 Early 2023"]
[White "FromTexas54"]
[Black "chess123456s"]
[WhiteElo "2422"]
[BlackElo "2631"]
[Result "0-1"]
[Round "7"]
[TimeControl "180+2"]
[Date "2023.07.04"]
[WhiteClock "0:00:01"]
[BlackClock "0:00:23"]
[Board "78"]

1. d4 {[%clk 0:02:48]}  Nf6 {[%clk 0:02:59]} 2. c4 {[%clk 0:02:48]}  c5 {[%clk 0:02:58]} 3. d5 {[%clk 0:02:49]}  b5 {[%clk 0:02:58]} 4. Qc2 {[%clk 0:02:47]}  b4 {[%clk 0:02:57]} 5. e4 {[%clk 0:02:47]}  d6 {[%clk 0:02:56]} 6. f4 {[%clk 0:02:48]}  g6 {[%clk 0:02:55]} 7. Nf3 {[%clk 0:02:48]}  Bg7 {[%clk 0:02:54]} 8. Bd3 {[%clk 0:02:47]}  O-O {[%clk 0:02:53]} 9. O-O {[%clk 0:02:46]}  Nfd7 {[%clk 0:02:44]} 10. Be3 {[%clk 0:02:33]}  e5 {[%clk 0:02:28]} 11. dxe6 {[%clk 0:02:22]}  fxe6 {[%clk 0:02:26]} 12. Nbd2 {[%clk 0:02:21]}  Nc6 {[%clk 0:02:23]} 13. Kh1 {[%clk 0:02:19]}  Bb7 {[%clk 0:02:15]} 14. Rae1 {[%clk 0:02:06]}  e5 {[%clk 0:02:14]} 15. Ng5 {[%clk 0:01:59]}  Qe7 {[%clk 0:02:05]} 16. f5 {[%clk 0:01:53]}  Nd4 {[%clk 0:01:54]} 17. Qd1 {[%clk 0:01:46]}  h6 {[%clk 0:01:45]} 18. fxg6 {[%clk 0:01:26]}  hxg5 {[%clk 0:01:32]} 19. Qh5 {[%clk 0:01:25]}  Bf6 {[%clk 0:01:06]} 20. Nf3 {[%clk 0:01:25]}  Nxf3 {[%clk 0:01:03]} 21. Rxf3 {[%clk 0:01:25]}  Qg7 {[%clk 0:00:55]} 22. Ref1 {[%clk 0:01:22]}  Rae8 {[%clk 0:00:46]} 23. Bxg5 {[%clk 0:00:51]}  Bxg5 {[%clk 0:00:44]} 24. Rf7 {[%clk 0:00:51]}  Qh6 {[%clk 0:00:43]} 25. Qg4 {[%clk 0:00:42]}  Bc8 {[%clk 0:00:33]} 26. Rxf8+ {[%clk 0:00:32]}  Nxf8 {[%clk 0:00:28]} 27. Qf3 {[%clk 0:00:19]}  Qxg6 {[%clk 0:00:27]} 28. Be2 {[%clk 0:00:13]}  Nh7 {[%clk 0:00:27]} 29. Qd3 {[%clk 0:00:12]}  Rf8 {[%clk 0:00:24]} 30. Qd5+ {[%clk 0:00:10]}  Qe6 {[%clk 0:00:25]} 31. Bf3 {[%clk 0:00:04]}  Qxd5 {[%clk 0:00:24]} 32. exd5 {[%clk 0:00:01]}  Nf6 {[%clk 0:00:23]} 0-1


[Site "https://www.chess.com"]

[Event "Titled Tuesday Blitz July 4 Early 2023"]
[White "Ozdemir, Serhan Berat"]
[Black "MAHanif"]
[WhiteFideId "6374611"]
[WhiteElo "2623"]
[BlackElo "2373"]
[Result "1-0"]
[Round "7"]
[TimeControl "180+2"]
[Date "2023.07.04"]
[WhiteClock "0:00:02"]
[BlackClock "0:00:12"]
[Board "79"]

1. e4 {[%clk 0:03:00]}  c5 {[%clk 0:02:56]} 2. Nf3 {[%clk 0:03:00]}  Nc6 {[%clk 0:02:56]} 3. Bb5 {[%clk 0:03:00]}  g6 {[%clk 0:02:55]} 4. Bxc6 {[%clk 0:02:59]}  bxc6 {[%clk 0:02:55]} 5. d4 {[%clk 0:02:56]}  cxd4 {[%clk 0:02:53]} 6. Qxd4 {[%clk 0:02:55]}  Nf6 {[%clk 0:02:48]} 7. e5 {[%clk 0:02:55]}  Nd5 {[%clk 0:02:38]} 8. O-O {[%clk 0:02:47]}  Bg7 {[%clk 0:02:37]} 9. c4 {[%clk 0:02:37]}  Nc7 {[%clk 0:02:37]} 10. Nc3 {[%clk 0:02:36]}  Ne6 {[%clk 0:02:36]} 11. Qh4 {[%clk 0:02:36]}  Rb8 {[%clk 0:02:25]} 12. Re1 {[%clk 0:02:29]}  Ba6 {[%clk 0:02:03]} 13. b3 {[%clk 0:02:26]}  Qa5 {[%clk 0:02:02]} 14. Bd2 {[%clk 0:02:05]}  Qa3 {[%clk 0:02:01]} 15. Ne4 {[%clk 0:01:55]}  h6 {[%clk 0:01:45]} 16. Bc1 {[%clk 0:01:30]}  Qb4 {[%clk 0:01:37]} 17. Bd2 {[%clk 0:01:30]}  Qa3 {[%clk 0:01:37]} 18. Bc3 {[%clk 0:01:20]}  O-O {[%clk 0:01:23]} 19. Bd2 {[%clk 0:01:16]}  g5 {[%clk 0:01:23]} 20. Qg4 {[%clk 0:01:07]}  d5 {[%clk 0:01:17]} 21. exd6 {[%clk 0:01:00]}  exd6 {[%clk 0:01:17]} 22. h4 {[%clk 0:00:58]}  f5 {[%clk 0:01:15]} 23. Qh3 {[%clk 0:00:57]}  g4 {[%clk 0:01:12]} 24. Qg3 {[%clk 0:00:51]}  h5 {[%clk 0:01:03]} 25. Nfg5 {[%clk 0:00:28]}  Be5 {[%clk 0:00:33]} 26. f4 {[%clk 0:00:11]}  gxf3 {[%clk 0:00:31]} 27. Qxf3 {[%clk 0:00:03]}  fxe4 {[%clk 0:00:31]} 28. Qxh5 {[%clk 0:00:02]}  Nxg5 {[%clk 0:00:19]} 29. Bxg5 {[%clk 0:00:03]}  Bd4+ {[%clk 0:00:18]} 30. Kh1 {[%clk 0:00:03]}  Bg7 {[%clk 0:00:17]} 31. Rad1 {[%clk 0:00:02]}  Qb2 {[%clk 0:00:17]} 32. Rxe4 {[%clk 0:00:01]}  Qc2 {[%clk 0:00:17]} 33. Rde1 {[%clk 0:00:01]}  Bc8 {[%clk 0:00:16]} 34. Re7 {[%clk 0:00:01]}  Bf5 {[%clk 0:00:15]} 35. Rxg7+ {[%clk 0:00:02]}  Kxg7 {[%clk 0:00:15]} 36. Re7+ {[%clk 0:00:02]}  Kg8 {[%clk 0:00:14]} 37. Qh6 {[%clk 0:00:03]}  Qd1+ {[%clk 0:00:13]} 38. Kh2 {[%clk 0:00:03]}  Qg4 {[%clk 0:00:12]} 39. Qg7# {[%clk 0:00:02]} 1-0


[Site "https://www.chess.com"]